bitfinex/quotes_BTCUSD_20241116
["timestamp","ask_amount","ask_price","bid_price","bid_amount"]
[1731772102602,0.240895,90175.0,90161.0,0.16624551]
[1731772102836,1.18914618,90175.0,90161.0,0.16624551]
[1731772103053,1.09160479,90175.0,90161.0,0.16624551]
[1731772103275,1.03680688,90175.0,90161.0,0.16624551]
[1731772103492,0.93926185,90175.0,90160.0,0.0190801]
[1731772103708,0.93923083,90175.0,90160.0,0.0190801]
[1731772103969,1.06857377,90175.0,90160.0,0.0190801]
[1731772104455,1.04789501,90175.0,90160.0,0.0190801]
[1731772104707,1.07089501,90175.0,90160.0,0.0190801]
[1731772104939,0.94355207,90175.0,90160.0,0.0190801]
[1731772105151,0.115912,90161.0,90160.0,0.0190801]
[1731772105375,0.39333053,90161.0,90160.0,0.0190801]
[1731772105598,0.39533053,90161.0,90160.0,0.0190801]
[1731772106466,0.40676147,90161.0,90160.0,0.00380189]
[1731772106675,0.51767347,90161.0,90160.0,0.00380189]
[1731772107158,0.54066888,90161.0,90160.0,0.00380189]
[1731772107361,0.51999437,90161.0,90160.0,0.00380189]
[1731772107561,0.57668403,90161.0,90160.0,0.00380189]
[1731772109156,0.44934109,90161.0,90160.0,0.00380189]
[1731772109368,0.42434109,90161.0,90160.0,0.00380189]
[1731772109582,0.42634109,90161.0,90160.0,0.00380189]
[1731772109810,0.99534109,90161.0,90160.0,0.00380189]
[1731772110247,0.97466531,90161.0,90160.0,0.00380189]
[1731772113889,0.97466531,90161.0,90147.0,0.0135425]
[1731772113890,0.007,90132.0,90131.0,0.16624551]
[1731772114348,0.002,90127.0,90126.0,0.12734294]
[1731772114556,0.002,90127.0,90117.0,0.02271495]
[1731772114557,0.001,90119.0,90118.0,0.12734294]
[1731772114765,0.04649302,90119.0,90118.0,0.23830794]
[1731772115231,0.04649302,90119.0,90118.0,0.12734294]
[1731772115232,0.04549302,90119.0,90118.0,0.12734294]
[1731772115887,0.04515904,90119.0,90118.0,0.12734294]
[1731772116136,0.001,90123.0,90122.0,0.110959]
[1731772116361,0.04615904,90123.0,90122.0,0.110959]
[1731772117925,0.04615904,90123.0,90122.0,0.111816]
[1731772118371,0.04615904,90123.0,90122.0,0.000857]
[1731772118807,0.15711804,90123.0,90122.0,0.000857]
[1731772119020,0.15611804,90123.0,90122.0,0.000857]
[1731772119254,0.15711804,90123.0,90122.0,0.000857]
[1731772119510,0.04615904,90123.0,90122.0,0.000857]
[1731772119745,0.04515904,90123.0,90122.0,0.000857]
[1731772119965,0.001,90123.0,90122.0,0.000857]
[1731772120177,0.04592622,90123.0,90122.0,0.000857]
[1731772122460,0.15788522,90123.0,90122.0,0.000857]
[1731772122672,0.15688522,90123.0,90122.0,0.000857]
[1731772122882,0.15788522,90123.0,90122.0,0.000857]
[1731772125884,0.16069737,90123.0,90122.0,0.000857]
[1731772126301,0.26069737,90123.0,90122.0,0.000857]
[1731772127007,0.16069737,90123.0,90122.0,0.000857]
[1731772128613,0.26069737,90123.0,90122.0,0.000857]
[1731772128823,0.16069737,90123.0,90122.0,0.000857]
[1731772129499,0.26069737,90123.0,90122.0,0.000857]
[1731772129731,0.26569737,90123.0,90122.0,0.000857]
[1731772130189,0.26741077,90123.0,90122.0,0.000857]
[1731772131130,0.37647332,90123.0,90122.0,0.000857]
[1731772131375,0.38147332,90123.0,90122.0,0.000857]
[1731772131589,0.44048556,90123.0,90122.0,0.000857]
[1731772132085,0.20342301,90123.0,90122.0,0.000857]
[1731772132315,0.20342301,90123.0,90122.0,0.12819994]
[1731772132316,0.05045177,90123.0,90122.0,0.12819994]
[1731772132520,0.05145177,90123.0,90122.0,0.12819994]
[1731772132739,1.05929801,90100.0,90088.0,0.0015]
[1731772132970,1.09950574,90100.0,90099.0,0.34739449]
[1731772133678,1.09950574,90100.0,90099.0,0.38260074]
[1731772133889,0.62339437,90100.0,90099.0,0.53694368]
[1731772134115,0.57383585,90100.0,90099.0,0.53694368]
[1731772134335,0.52168435,90100.0,90099.0,0.53694368]
[1731772135293,0.50778435,90100.0,90099.0,0.53694368]
[1731772135700,0.46875435,90100.0,90099.0,0.53694368]
[1731772136356,0.46875435,90100.0,90099.0,0.50994368]
[1731772136650,0.46875435,90100.0,90099.0,0.51394368]
[1731772137079,0.46875435,90100.0,90099.0,0.38260074]
[1731772137354,0.46875435,90100.0,90099.0,0.50994368]
[1731772137558,0.46875435,90100.0,90099.0,0.53294368]
[1731772138172,0.46875435,90100.0,90099.0,0.50994368]
[1731772139455,0.46875435,90100.0,90099.0,0.53294368]
[1731772139666,0.46875435,90100.0,90099.0,0.2782578]
[1731772139922,0.46875435,90100.0,90099.0,0.53294368]
[1731772141016,0.46875435,90100.0,90099.0,0.38260074]
[1731772141306,0.46875435,90100.0,90099.0,0.38345744]
[1731772143099,0.46875435,90100.0,90099.0,0.51080038]
[1731772143335,0.03349326,90100.0,90099.0,0.41045744]
[1731772144211,0.001,90131.0,90105.0,0.004]
[1731772144419,0.001,90131.0,90104.0,0.221965]
[1731772144420,0.111943,90136.0,90120.0,0.110963]
[1731772144667,0.20709579,90121.0,90120.0,0.110963]
[1731772145138,0.04085028,90121.0,90120.0,0.110963]
[1731772145365,0.02553292,90121.0,90120.0,0.110963]
[1731772145847,0.16624551,90134.0,90121.0,0.023]
[1731772146032,0.16624551,90134.0,90122.0,0.24702255]
[1731772146291,0.02553292,90133.0,90122.0,0.24702255]
[1731772146504,0.02553292,90133.0,90122.0,0.37436549]
[1731772146761,0.16624551,90145.0,90122.0,0.37436549]
[1731772146762,0.16624551,90145.0,90144.0,0.110933]
[1731772146971,0.16624551,90145.0,90144.0,0.34733849]
[1731772147182,0.19180463,90145.0,90144.0,0.34733849]
[1731772147432,0.02555912,90145.0,90144.0,0.34733849]
[1731772148132,0.16624551,90163.0,90146.0,0.22186]
[1731772148360,0.16624551,90163.0,90149.0,0.110927]
[1731772148606,0.02555912,90160.0,90149.0,0.24298955]
[1731772149081,0.02555912,90160.0,90142.0,0.22187]
[1731772149082,0.001,90144.0,90131.0,0.12734294]
[1731772149338,0.001,90130.0,90124.0,0.12734294]
[1731772149559,0.110943,90137.0,90125.0,0.10906255]
[1731772149774,0.001,90139.0,90138.0,0.12734294]
[1731772149775,0.11294,90139.0,90138.0,0.12734294]
[1731772150024,0.002,90139.0,90138.0,0.12734294]
[1731772150704,0.111939,90139.0,90129.0,0.110951]
[1731772150932,0.111939,90139.0,90131.0,0.110949]
[1731772150933,0.002,90139.0,90131.0,0.110949]
[1731772151149,0.002,90139.0,90134.0,0.110945]
[1731772151375,0.110936,90142.0,90141.0,0.110937]
[1731772151376,0.001,90142.0,90141.0,0.110937]
[1731772151625,0.16624551,90149.0,90135.0,0.11128127]
[1731772151626,0.001,90147.0,90136.0,0.12956145]
[1731772151852,0.001,90147.0,90137.0,0.10906255]
[1731772152059,0.01612991,90150.0,90138.0,0.00221849]
[1731772152292,0.16624551,90146.0,90145.0,0.110932]
[1731772152505,0.01612991,90150.0,90138.0,0.10906255]
[1731772152759,0.01612991,90150.0,90142.0,0.221872]
[1731772152956,0.01612991,90150.0,90139.0,0.11128103]
[1731772152957,0.01612991,90150.0,90149.0,0.110927]
[1731772153624,0.01612991,90150.0,90143.0,0.10906255]
[1731772153835,0.110927,90149.0,90137.0,0.221883]
[1731772154081,0.110927,90149.0,90138.0,0.10906255]
[1731772154082,0.222854,90149.0,90138.0,0.10906255]
[1731772154310,0.222854,90149.0,90126.0,0.44866629]
[1731772154311,0.110946,90134.0,90122.0,0.0008567]
[1731772154535,0.221882,90138.0,90123.0,0.22002155]
[1731772154753,0.110942,90137.0,90123.0,0.22002155]
[1731772154967,0.110949,90132.0,90123.0,0.10906255]
[1731772155189,0.001,90123.0,90122.0,0.0008567]
[1731772155445,0.111959,90123.0,90122.0,0.0008567]
[1731772155667,0.112959,90123.0,90122.0,0.0008567]
[1731772156762,0.111959,90123.0,90122.0,0.0008567]
[1731772157387,0.112959,90123.0,90122.0,0.0008567]
[1731772158262,0.33202155,90123.0,90122.0,0.0008567]
[1731772159189,0.32702155,90123.0,90122.0,0.0008567]
[1731772159430,0.33202155,90123.0,90122.0,0.0008567]
[1731772159865,0.32702155,90123.0,90122.0,0.0008567]
[1731772160097,0.33202155,90123.0,90122.0,0.0008567]
[1731772160337,0.32702155,90123.0,90122.0,0.0008567]
[1731772160543,0.36002155,90123.0,90122.0,7e-07]
[1731772163240,0.90602155,90123.0,90122.0,7e-07]
[1731772163688,0.92668454,90123.0,90122.0,7e-07]
[1731772163895,0.92868454,90123.0,90122.0,7e-07]
[1731772164128,0.92668454,90123.0,90122.0,7e-07]
[1731772164556,0.92168454,90123.0,90122.0,7e-07]
[1731772165778,0.79368454,90123.0,90122.0,7e-07]
[1731772166011,0.22702155,90123.0,90122.0,7e-07]
[1731772166330,0.117959,90123.0,90122.0,7e-07]
[1731772166490,0.116959,90123.0,90122.0,7e-07]
[1731772166719,0.117959,90123.0,90122.0,7e-07]
[1731772167984,0.112959,90123.0,90122.0,7e-07]
[1731772168212,0.117959,90123.0,90122.0,7e-07]
[1731772169376,0.22702155,90123.0,90122.0,7e-07]
[1731772169639,0.117959,90123.0,90122.0,7e-07]
[1731772169874,0.39326706,90123.0,90122.0,7e-07]
[1731772170099,0.52126706,90123.0,90122.0,7e-07]
[1731772170318,0.37183865,90123.0,90122.0,7e-07]
[1731772170535,0.37683865,90123.0,90122.0,7e-07]
[1731772171483,0.36683865,90123.0,90122.0,7e-07]
[1731772171691,0.32702155,90123.0,90122.0,7e-07]
[1731772174793,0.117959,90123.0,90122.0,7e-07]
[1731772175457,0.111959,90123.0,90122.0,7e-07]
[1731772175721,0.112959,90123.0,90122.0,7e-07]
[1731772176413,0.117959,90123.0,90122.0,7e-07]
[1731772176629,0.112959,90123.0,90122.0,7e-07]
[1731772177892,0.111959,90123.0,90122.0,7e-07]
[1731772178335,0.112959,90123.0,90122.0,7e-07]
[1731772178577,0.11176394,90123.0,90122.0,7e-07]
[1731772178802,0.002,90123.0,90122.0,7e-07]
[1731772179024,0.001,90123.0,90122.0,7e-07]
[1731772179706,0.16724551,90129.0,90123.0,0.04325719]
[1731772179956,0.110955,90126.0,90123.0,0.04325719]
[1731772180158,0.110958,90124.0,90123.0,0.04325719]
[1731772180571,0.111958,90124.0,90123.0,0.04325719]
[1731772180786,0.109358,90124.0,90123.0,0.04325719]
[1731772181257,0.001,90124.0,90123.0,0.04325719]
[1731772181480,0.111958,90124.0,90123.0,0.04325719]
[1731772182626,0.116958,90124.0,90123.0,0.04325719]
[1731772184794,0.23766314,90124.0,90123.0,0.04325719]
[1731772185065,0.34672569,90124.0,90123.0,0.04325719]
[1731772185678,0.34675404,90124.0,90123.0,0.04325719]
[1731772187359,0.13269149,90124.0,90123.0,0.04325719]
[1731772187595,0.13169149,90124.0,90123.0,0.04325719]
[1731772187806,0.13269149,90124.0,90123.0,0.04325719]
[1731772188652,0.111958,90124.0,90123.0,0.04325719]
[1731772189359,0.02173182,90126.0,90123.0,0.04325719]
[1731772189586,0.0017136,90124.0,90123.0,0.04325719]
[1731772189785,0.1136716,90124.0,90123.0,0.04325719]
[1731772190221,0.0017136,90124.0,90123.0,0.04325719]
[1731772191760,0.00020981,90124.0,90123.0,0.04325719]
[1731772192185,0.00020981,90124.0,90123.0,0.15421619]
[1731772192389,0.221906,90128.0,90124.0,0.04141604]
[1731772192625,0.110957,90125.0,90124.0,0.04141604]
[1731772192886,0.13169505,90125.0,90124.0,0.04141604]
[1731772193127,0.110957,90125.0,90124.0,0.04141604]
[1731772193351,0.13169496,90125.0,90124.0,0.04141604]
[1731772194764,0.34675751,90125.0,90124.0,0.04141604]
[1731772197188,0.39274677,90125.0,90124.0,0.04141604]
[1731772197650,0.39774677,90125.0,90124.0,0.04141604]
[1731772198376,0.18557746,90123.0,90122.0,7e-07]
[1731772198583,0.31537797,90123.0,90122.0,7e-07]
[1731772199002,0.33837797,90123.0,90122.0,7e-07]
[1731772199839,0.43600925,90123.0,90122.0,7e-07]
[1731772200784,0.33837797,90123.0,90122.0,7e-07]
[1731772201017,0.48482489,90123.0,90122.0,7e-07]
[1731772201283,0.33837797,90123.0,90122.0,7e-07]
[1731772201485,0.69984123,90123.0,90122.0,7e-07]
[1731772201739,1.24785458,90123.0,90122.0,7e-07]
[1731772202470,1.24085458,90123.0,90122.0,7e-07]
[1731772202712,1.24585458,90123.0,90122.0,7e-07]
[1731772203406,0.88437797,90123.0,90122.0,7e-07]
[1731772203881,0.88937797,90123.0,90122.0,7e-07]
[1731772204121,1.25286371,90123.0,90122.0,7e-07]
[1731772204412,1.44812627,90123.0,90122.0,7e-07]
[1731772204639,1.44813276,90123.0,90122.0,7e-07]
[1731772204992,1.42738831,90123.0,90122.0,7e-07]
[1731772205091,1.48132393,90123.0,90122.0,7e-07]
[1731772205563,1.29489167,90123.0,90122.0,7e-07]
[1731772205809,0.115987,90100.0,90099.0,0.0008567]
[1731772206046,0.27898517,90100.0,90099.0,0.0008567]
[1731772206275,0.27898517,90100.0,90099.0,0.00654794]
[1731772206498,0.37898517,90100.0,90099.0,0.0008567]
[1731772206946,0.42604695,90100.0,90099.0,0.0008567]
[1731772207183,0.39285534,90100.0,90099.0,0.0008567]
[1731772207402,0.53546843,90100.0,90099.0,0.0008567]
[1731772207660,0.43756106,90100.0,90099.0,0.0008567]
[1731772207878,0.43487644,90100.0,90099.0,0.0008567]
[1731772208130,0.46287539,90100.0,90099.0,0.0008567]
[1731772208381,0.47411764,90100.0,90099.0,0.0008567]
[1731772208629,0.44611764,90100.0,90099.0,0.0008567]
[1731772209101,0.54403986,90100.0,90099.0,0.0008567]
[1731772209579,0.44611764,90100.0,90099.0,0.0008567]
[1731772210008,0.33705509,90100.0,90099.0,0.0008567]
[1731772210218,0.18762309,90100.0,90099.0,0.0058567]
[1731772210446,0.17879279,90100.0,90099.0,0.0058567]
[1731772210698,0.29285534,90100.0,90099.0,0.0058567]
[1731772211154,0.30168304,90100.0,90099.0,0.0058567]
[1731772211361,0.29285534,90100.0,90099.0,0.0008567]
[1731772211576,0.4996298,90100.0,90099.0,0.0008567]
[1731772211791,0.54860319,90100.0,90099.0,0.0008567]
[1731772212055,0.215993,90095.0,90094.0,0.09075836]
[1731772212308,0.25943534,90095.0,90094.0,0.09075836]
[1731772212977,0.18762649,90095.0,90094.0,0.09075836]
[1731772213193,0.19262649,90095.0,90094.0,0.09075836]
[1731772213420,0.18379879,90095.0,90094.0,0.09075836]
[1731772213682,0.19262649,90095.0,90094.0,0.09075836]
[1731772213904,0.18379879,90095.0,90094.0,0.09075836]
[1731772214136,0.28762649,90095.0,90094.0,0.09075836]
[1731772214349,0.27879879,90095.0,90094.0,0.09075836]
[1731772214591,0.28379879,90095.0,90094.0,0.09075836]
[1731772214816,0.39286134,90095.0,90094.0,0.09075836]
[1731772215025,0.40166979,90095.0,90094.0,0.09075836]
[1731772215750,0.77110506,90095.0,90094.0,0.09075836]
[1731772216024,0.79410506,90095.0,90094.0,0.09075836]
[1731772216249,1.35918899,90095.0,90094.0,0.09075836]
[1731772216980,1.35918899,90095.0,90088.0,0.0005]
[1731772216981,0.37334394,90089.0,90088.0,3.6e-07]
[1731772217449,1.46631883,90089.0,90088.0,3.6e-07]
[1731772217452,1.10502073,90089.0,90088.0,3.6e-07]
[1731772217661,1.46631883,90089.0,90088.0,3.6e-07]
[1731772217884,1.49547621,90089.0,90088.0,3.6e-07]
[1731772218314,1.66172172,90089.0,90088.0,3.6e-07]
[1731772218565,0.34536694,90070.0,90058.0,0.005]
[1731772218829,0.52223528,90070.0,90058.0,0.005]
[1731772219032,0.52904373,90070.0,90058.0,0.005]
[1731772219523,0.53104373,90070.0,90058.0,0.005]
[1731772219755,0.60769866,90070.0,90058.0,0.005]
[1731772219993,0.57269785,90070.0,90058.0,0.005]
[1731772220202,0.44735491,90070.0,90058.0,0.005]
[1731772220420,0.43654646,90070.0,90058.0,0.005]
[1731772220684,0.43654646,90070.0,90062.0,0.005]
[1731772220901,0.28352537,90070.0,90062.0,0.005]
[1731772223349,0.27852537,90070.0,90062.0,0.005]
[1731772223818,0.17852537,90070.0,90069.0,0.0068564]
[1731772224096,0.16465031,90070.0,90069.0,0.0068564]
[1731772224444,0.17852537,90070.0,90069.0,0.0068564]
[1731772224789,0.05362631,90070.0,90069.0,0.0068564]
[1731772225024,0.05362631,90070.0,90069.0,0.22694395]
[1731772225465,0.0206255,90070.0,90069.0,0.23685717]
[1731772225696,0.25501743,90091.0,90069.0,0.23685717]
[1731772225697,0.333015,90086.0,90085.0,0.005]
[1731772225905,0.35367131,90086.0,90085.0,0.005]
[1731772226136,0.36754128,90086.0,90085.0,0.005]
[1731772226368,0.03452628,90086.0,90085.0,0.005]
[1731772226591,0.02065631,90086.0,90085.0,0.22506855]
[1731772227058,0.05372444,90086.0,90085.0,0.2299723]
[1731772227272,0.03306813,90086.0,90085.0,0.26019217]
[1731772227497,0.03306813,90086.0,90085.0,0.30475955]
[1731772227736,0.16624551,90099.0,90098.0,0.11599]
[1731772227965,0.16624551,90099.0,90098.0,0.22505255]
[1731772228183,0.16624551,90110.0,90098.0,0.22505255]
[1731772228184,0.16624551,90110.0,90109.0,0.005]
[1731772228429,0.18690696,90110.0,90109.0,0.005]
[1731772228874,0.03301743,90120.0,90119.0,0.005]
[1731772229098,0.02066035,90120.0,90119.0,0.115964]
[1731772229297,0.03301743,90125.0,90122.0,0.005]
[1731772229519,0.03301743,90125.0,90122.0,0.11096]
[1731772229953,0.03301743,90125.0,90122.0,0.22002255]
[1731772230631,0.03301743,90125.0,90122.0,0.22502255]
[1731772230850,0.03301743,90125.0,90122.0,0.27245319]
[1731772231053,0.03305671,90141.0,90138.0,0.221881]
[1731772231271,0.03305671,90141.0,90140.0,0.110938]
[1731772231485,0.0017134,90149.0,90140.0,0.110938]
[1731772231486,0.0017134,90149.0,90144.0,0.221867]
[1731772231713,0.0017134,90149.0,90148.0,0.110928]
[1731772231944,0.0017134,90149.0,90148.0,0.21999055]
[1731772232692,0.0017134,90149.0,90148.0,0.22499055]
[1731772233160,0.0017134,90149.0,90148.0,0.26956302]
[1731772233400,0.00119797,90149.0,90143.0,0.005]
[1731772233652,0.00119797,90149.0,90124.0,0.005]
[1731772233839,0.110929,90148.0,90129.0,0.16624551]
[1731772234063,0.00119797,90149.0,90136.0,0.005]
[1731772234294,0.00119797,90149.0,90148.0,0.110928]
[1731772234507,0.00119797,90149.0,90142.0,0.005]
[1731772234741,0.00119797,90149.0,90148.0,0.110928]
[1731772236097,0.00119797,90149.0,90148.0,0.21999055]
[1731772239367,0.00119797,90149.0,90148.0,0.10906255]
[1731772239621,0.001714,90161.0,90148.0,0.10906255]
[1731772239622,0.001714,90161.0,90149.0,0.110927]
[1731772240054,0.001714,90161.0,90149.0,0.21998955]
[1731772241198,0.16795951,90161.0,90149.0,0.21998955]
[1731772241626,0.16795951,90161.0,90149.0,0.26405028]
[1731772242735,0.16795951,90161.0,90149.0,0.39639322]
[1731772244122,0.16795951,90161.0,90149.0,0.27224028]
[1731772244817,0.27887151,90161.0,90149.0,0.27224028]
[1731772245041,0.16795951,90161.0,90149.0,0.27224028]
[1731772247503,0.16795951,90161.0,90149.0,0.26724028]
[1731772247713,0.16795951,90161.0,90149.0,0.27224028]
[1731772249280,0.01784331,90150.0,90149.0,0.27224028]
[1731772249562,0.01784331,90150.0,90149.0,0.26724028]
[1731772251120,0.01784331,90150.0,90149.0,0.27224028]
[1731772251588,0.01784331,90150.0,90149.0,0.29524028]
[1731772254756,0.001714,90161.0,90160.0,0.115913]
[1731772254983,0.16624551,90174.0,90173.0,0.24323994]
[1731772255198,0.16624551,90174.0,90173.0,0.35230249]
[1731772255428,0.02417566,90196.0,90182.0,0.221773]
[1731772255667,0.02417566,90196.0,90185.0,0.23822594]
[1731772255878,0.02417566,90196.0,90185.0,0.21994555]
[1731772256357,0.02417566,90196.0,90185.0,0.24919823]
[1731772256616,0.0017134,90196.0,90185.0,0.24919823]
[1731772257042,0.0017134,90196.0,90185.0,0.21994555]
[1731772257312,0.0017134,90196.0,90185.0,0.27941542]
[1731772257581,0.0017134,90196.0,90185.0,0.32549088]
[1731772257792,0.0017134,90196.0,90185.0,0.32327369]
[1731772258000,0.0017134,90196.0,90195.0,0.24321294]
[1731772258240,0.0017134,90196.0,90195.0,0.35227549]
[1731772259115,0.0017134,90196.0,90195.0,0.40452817]
[1731772259540,0.0017134,90196.0,90195.0,0.37527549]
[1731772259765,0.0017134,90196.0,90195.0,0.35227549]
[1731772259974,0.11088,90188.0,90181.0,0.12734294]
[1731772260274,0.0017134,90196.0,90187.0,0.04553091]
[1731772260475,0.0017134,90196.0,90180.0,0.221776]
[1731772260476,0.110887,90182.0,90178.0,0.04388825]
[1731772260694,0.05368865,90195.0,90179.0,0.10906255]
[1731772260695,0.05369723,90181.0,90179.0,0.10906255]
[1731772260912,0.0017134,90196.0,90166.0,0.34915294]
[1731772260913,0.05369723,90180.0,90166.0,0.12734294]
[1731772261134,0.02065278,90180.0,90179.0,0.11089]
[1731772261349,0.02065278,90180.0,90179.0,0.35451269]
[1731772261597,0.16624551,90194.0,90179.0,0.35451269]
[1731772261598,0.16624551,90194.0,90193.0,0.115873]
[1731772261812,0.16624551,90194.0,90193.0,0.35227849]
[1731772262027,0.0017134,90196.0,90195.0,0.11587]
[1731772262282,0.0017134,90196.0,90195.0,0.22714952]
[1731772262669,0.0017134,90196.0,90195.0,0.22493255]
[1731772263600,0.0017134,90196.0,90195.0,0.24793255]
[1731772263813,0.0017134,90196.0,90195.0,0.22493255]
[1731772264661,0.0017134,90196.0,90195.0,0.10906255]
[1731772264899,0.0017134,90196.0,90192.0,0.005]
[1731772264900,0.0017134,90196.0,90194.0,0.110872]
[1731772265351,0.0017134,90196.0,90195.0,0.005]
[1731772265597,0.0017134,90196.0,90195.0,0.22714966]
[1731772265819,0.0017134,90196.0,90195.0,0.22214966]
[1731772266049,0.0017134,90196.0,90195.0,0.22714966]
[1731772266495,0.0017134,90196.0,90195.0,0.22493255]
[1731772267174,0.0017134,90196.0,90195.0,0.21993255]
[1731772267417,0.0017134,90196.0,90195.0,0.22493255]
[1731772268064,0.0017134,90196.0,90195.0,0.11406255]
[1731772268269,0.0017134,90196.0,90195.0,0.10906255]
[1731772269030,0.0017134,90196.0,90195.0,0.21993255]
[1731772269266,0.0017134,90196.0,90195.0,0.22493255]
[1731772269731,0.0017134,90196.0,90193.0,0.221745]
[1731772269732,0.0017134,90196.0,90183.0,0.005]
[1731772269951,0.110872,90194.0,90187.0,0.11088]
[1731772270195,0.16624551,90190.0,90176.0,0.110894]
[1731772270451,0.0017134,90196.0,90182.0,0.16624551]
[1731772270452,0.02061997,90189.0,90182.0,0.16624551]
[1731772270651,0.02061997,90188.0,90173.0,0.11406255]
[1731772270871,0.226749,90192.0,90173.0,0.22495955]
[1731772270872,0.332669,90180.0,90173.0,0.22495955]
[1731772271076,0.02061997,90179.0,90174.0,0.110895]
[1731772271311,0.02062575,90178.0,90174.0,0.33085555]
[1731772271538,0.221754,90190.0,90174.0,0.10906255]
[1731772271739,0.16624551,90185.0,90162.0,0.17124551]
[1731772271976,0.110891,90179.0,90173.0,0.27714251]
[1731772272171,0.02062611,90178.0,90171.0,0.110899]
[1731772272438,0.110893,90177.0,90171.0,0.115899]
[1731772272633,0.02062987,90176.0,90172.0,0.110898]
[1731772272855,0.16624551,90187.0,90172.0,0.110898]
[1731772272856,0.02062987,90175.0,90174.0,0.110896]
[1731772273079,0.0067134,90196.0,90187.0,0.11088]
[1731772273338,0.020632,90188.0,90187.0,0.00221746]
[1731772273565,0.020632,90188.0,90187.0,0.11088]
[1731772273769,0.0017134,90196.0,90188.0,0.110879]
[1731772274217,0.0017134,90196.0,90188.0,0.21994155]
[1731772276193,0.0017134,90196.0,90188.0,0.22715878]
[1731772276408,0.0017134,90196.0,90195.0,0.11087]
[1731772276634,0.0017134,90196.0,90195.0,0.21993255]
[1731772277072,0.0017134,90196.0,90195.0,0.2221496]
[1731772277504,0.221709,90208.0,90196.0,0.221739]
[1731772277733,0.1116384,90209.0,90195.0,0.10906255]
[1731772277734,0.221712,90207.0,90195.0,0.10906255]
[1731772277961,0.110859,90204.0,90195.0,0.10906255]
[1731772278175,0.110858,90205.0,90198.0,0.110866]
[1731772278402,0.110858,90205.0,90195.0,0.33080255]
[1731772278403,0.02064392,90204.0,90195.0,0.33080255]
[1731772278630,0.02064392,90203.0,90202.0,0.110861]
[1731772278869,0.005,90212.0,90199.0,0.00221707]
[1731772279082,0.005,90212.0,90201.0,0.110863]
[1731772279083,0.110856,90207.0,90201.0,0.110863]
[1731772279293,0.02064928,90206.0,90199.0,0.00221707]
[1731772279499,0.02064928,90205.0,90196.0,0.110869]
[1731772279705,0.02064928,90204.0,90196.0,0.221739]
[1731772279919,0.02064928,90203.0,90200.0,0.110864]
[1731772280125,0.02064928,90202.0,90200.0,0.110864]
[1731772280344,0.0017142,90215.0,90201.0,0.27530806]
[1731772280566,0.02066329,90213.0,90201.0,0.10906255]
[1731772280785,0.1125602,90215.0,90201.0,0.10906255]
[1731772280786,0.02066329,90212.0,90211.0,0.110851]
[1731772281466,0.0017142,90215.0,90213.0,0.110848]
[1731772281697,0.0017142,90215.0,90213.0,0.21991055]
[1731772282248,0.1125612,90214.0,90208.0,0.110853]
[1731772282347,0.110848,90213.0,90208.0,0.110853]
[1731772282560,0.0017142,90214.0,90202.0,0.16624551]
[1731772282786,0.11085,90212.0,90207.0,0.110856]
[1731772283231,0.0017142,90214.0,90196.0,0.005]
[1731772283232,0.221697,90213.0,90197.0,0.221735]
[1731772283443,0.2217,90212.0,90204.0,0.110859]
[1731772283650,0.0017142,90214.0,90205.0,0.00221692]
[1731772283860,0.0017142,90214.0,90212.0,0.110849]
[1731772284088,0.0017142,90214.0,90213.0,0.110848]
[1731772284323,0.0017142,90214.0,90213.0,0.11306478]
[1731772284753,0.0017142,90214.0,90213.0,0.22212733]
[1731772285526,0.0017142,90214.0,90213.0,0.21991055]
[1731772285643,0.0017142,90215.0,90213.0,0.10906255]
[1731772285844,0.0106,90221.0,90214.0,0.10906255]
[1731772286073,0.0106,90221.0,90220.0,0.11084]
[1731772286302,0.0106,90221.0,90214.0,0.10906255]
[1731772286540,0.0106,90221.0,90216.0,0.110844]
[1731772286815,0.110842,90218.0,90212.0,0.110849]
[1731772287039,0.0106,90221.0,90205.0,0.221714]
[1731772287265,0.110845,90216.0,90209.0,0.27709751]
[1731772287487,0.221682,90219.0,90211.0,0.110851]
[1731772287714,0.0008563,90214.0,90212.0,0.110849]
[1731772288220,0.0008563,90214.0,90210.0,0.003185]
[1731772288442,0.0008563,90214.0,90213.0,0.110848]
[1731772288674,0.0008563,90214.0,90213.0,0.22212725]
[1731772289399,0.0008563,90214.0,90213.0,0.21991055]
[1731772289861,0.0008563,90214.0,90213.0,0.22491055]
[1731772290070,0.0008563,90214.0,90213.0,0.22712711]
[1731772290490,0.0008563,90214.0,90213.0,0.22491055]
[1731772290912,0.0008563,90214.0,90213.0,0.22712685]
[1731772291113,0.0008563,90214.0,90213.0,0.22491055]
[1731772291354,0.0008563,90214.0,90213.0,0.24791055]
[1731772291579,0.0008563,90214.0,90213.0,0.29266058]
[1731772292722,0.0008563,90214.0,90213.0,0.29466058]
[1731772293636,0.0008563,90214.0,90213.0,2.24426058]
[1731772294282,0.0008563,90214.0,90213.0,2.22126058]
[1731772294984,0.0008563,90214.0,90213.0,2.21926058]
[1731772296104,0.0008563,90214.0,90213.0,2.21426058]
[1731772299048,0.0008563,90214.0,90213.0,1.9496]
[1731772299282,0.0008563,90214.0,90213.0,2.060448]
[1731772299515,0.0008563,90214.0,90213.0,2.16951055]
[1731772300433,0.0008563,90214.0,90213.0,2.16916347]
[1731772300895,0.0008563,90214.0,90213.0,2.17234847]
[1731772302284,0.0008563,90214.0,90213.0,2.17734847]
[1731772304005,0.0008563,90214.0,90213.0,2.17234847]
[1731772304679,0.0008563,90214.0,90213.0,2.06150047]
[1731772304885,0.0008563,90214.0,90213.0,2.17234847]
[1731772305093,0.0008563,90214.0,90213.0,2.06150047]
[1731772305300,0.1117033,90214.0,90213.0,1.95243792]
[1731772305610,0.1117033,90214.0,90213.0,2.06328592]
[1731772305611,0.0008563,90214.0,90213.0,2.06328592]
[1731772306189,0.0008563,90214.0,90213.0,2.17234847]
[1731772306407,0.0008563,90214.0,90213.0,1.95243792]
[1731772306650,0.1117033,90214.0,90213.0,1.95243792]
[1731772307379,0.0008563,90214.0,90213.0,1.95243792]
[1731772307622,0.0008563,90214.0,90213.0,2.17734847]
[1731772307867,0.0106,90221.0,90213.0,2.17734847]
[1731772307868,0.0017146,90240.0,90235.0,0.115821]
[1731772308074,0.0017146,90240.0,90235.0,0.22488355]
[1731772308297,0.02239195,90236.0,90235.0,0.22488355]
[1731772308731,0.0017142,90236.0,90235.0,0.22488355]
[1731772310564,0.0017142,90236.0,90235.0,0.21988355]
[1731772311217,0.0017142,90236.0,90235.0,0.110821]
[1731772312915,0.0017142,90236.0,90235.0,0.21988355]
[1731772313623,0.05124506,90271.0,90270.0,0.110778]